[Event "FTX Crypto Cup MCCT 2022"]
[Site "Miami"]
[Date "2022.08.11"]
[Round "3.4"]
[White "Carlsen, Magnus"]
[Black "Aronian, Levon"]
[Result "1/2-1/2"]
[ECO "E94"]
[WhiteElo "2864"]
[BlackElo "2775"]
[Annotator "TA"]
[PlyCount "86"]
[EventDate "2022.08.10"]
[EventType "tourn"]
[EventCountry "USA"]
[SourceTitle "playchess.com"]
[Source "ChessBase"]
[SourceQuality "1"]
[TimeControl "900+10"]

{[%evp 16,86,54,49,86,79,98,99,113,104,119,108,122,89,112,73,114,61,57,40,68,61,47,62,70,66,70,59,67,70,67,24,26,9,137,134,400,414,608,562,673,638,935,400,364,158,161,156,290,0,0,0,0,0,0,0,0,0,0,0,0,0,0,0,0,0,0,0,0,0,0,0,0]} 1. Nf3 {[%emt 0:00:00]} Nf6 {[%emt 0:00:00]} 2. c4 {[%emt 0:00:08]} g6 {[%emt 0:00:03]} 3. Nc3 {[%emt 0:00:02]} Bg7 {[%emt 0:00:01]} 4. e4 {[%emt 0:00:01]} O-O {[%emt 0:00:07]} 5. d4 {[%emt 0:00:01]} d6 {[%emt 0:00:00]} 6. Be2 {[%emt 0:00:01]} e5 {[%emt 0:00:03]} 7. O-O {[%emt 0:00:23]} h6 {[%emt 0:00:04]} 8. d5 {[%emt 0:01:21]} Nbd7 {[%emt 0:00:25]} 9. Be3 {[%emt 0:00:13]} Nh7 {[%emt 0:00:02] [#] E94: King's Indian: Classical: 6 Be2 e5 7 0-0: Various Black 7th moves.} 10. Qd2 $146 {[%emt 0:01:33]} ({Predecessor:} 10. Qc1 h5 11. b4 f5 12. Ng5 Ndf6 13. Nxh7 Kxh7 14. Bg5 f4 15. g3 Bh3 16. Re1 Qd7 17. c5 {½-½ (58) San Segundo Carrillo,P (2505)-Mollaoglu,E (2375) Linares 1997}) 10... f5 {[%emt 0:00:02]} 11. exf5 {[%emt 0:00:00]} gxf5 {[%emt 0:00:02] White is better.} 12. Bxh6 {[%emt 0:00:01]} Bxh6 {[%emt 0:00:37]} 13. Qxh6 {[%emt 0:00:03]} Rf6 {[%emt 0:00:00]} 14. Qh4 {[%emt 0:01:59]} Ndf8 {[%emt 0:00:20]} 15. g3 {[%emt 0:01:06]} Qe7 {[%emt 0:00:04]} 16. Qh5 {[%emt 0:03:01]} (16. c5 $1 $16) 16... Qg7 $14 {[%emt 0:02:27]} 17. Nh4 {[%emt 0:02:44]} Ng5 {[%emt 0:00:32]} 18. f4 {[%emt 0:00:03]} (18. Kh1 $5 {[%cal Rf2f4]}) 18... exf4 {[%emt 0:01:22]} 19. gxf4 {[%emt 0:00:09]} Ne4+ {[%emt 0:00:20]} 20. Kh1 {[%emt 0:00:26]} Rh6 $1 {[%emt 0:00:04] [#]} 21. Nxe4 $1 {[%emt 0:00:01]} Rxh5 {[%emt 0:00:03]} 22. Bxh5 {[%emt 0:00:00]} Qh6 $1 {[%emt 0:00:24]} (22... fxe4 $2 23. Rg1 $16) 23. Ng3 {[%emt 0:00:06] 0x0.001b84be5515dp-1022s more active pieces.} Bd7 {[%emt 0:01:09]} 24. Rae1 {[%emt 0:00:02] White wants to play Nf3.} b5 {[%emt 0:00:26]} (24... Kh8 $11) 25. c5 $1 $16 {[%emt 0:00:26]} Qf6 $2 {[%emt 0:00:29][%mdl 8192]} (25... dxc5 $16 26. Re5 Kh8) 26. Nf3 $18 {[%emt 0:00:25]} (26. Rg1 Kh8 $18) 26... dxc5 {[%emt 0:00:23]} (26... Ng6 $142 27. c6 Bxc6) 27. Rg1 {[%emt 0:00:07]} Kh8 {[%emt 0:00:06]} 28. Ne5 {[%emt 0:00:03]} Kh7 {[%emt 0:00:57]} 29. Bf7 {[%emt 0:01:47]} (29. Re3 $142) 29... Be8 {[%emt 0:01:35] [#]} 30. Bxe8 {[%emt 0:02:27]} ({Less strong is} 30. Nh5 Qh6 $18) (30. Bg8+ $1 $18 {[%mdl 512] and White stays clearly on top.} Kh6 (30... Kh8 31. Re3) 31. Re3) 30... Rxe8 $16 {[%emt 0:00:03] [#]} 31. Re3 $1 {[%emt 0:00:04] Strongly threatening Nh5.} Ng6 {[%emt 0:03:49]} (31... Qd6 $16 {keeps fighting.}) 32. Nh5 $2 {[%emt 0:00:14] Pair of Knights!} (32. Ne2 $18) 32... Qh4 $36 {[%emt 0:00:02][%mdl 2048] Against Rh3. Black fights for an advantage. The position is equal.} 33. Nxg6 {[%emt 0:00:45] Really sharp!} Qxh5 {[%emt 0:00:01]} 34. Rxe8 {[%emt 0:00:02] Rh8+ would kill now.} Qf3+ {[%emt 0:00:01]} 35. Rg2 {[%emt 0:00:01] Hoping for h4.} Qd1+ {[%emt 0:00:02]} 36. Rg1 {[%emt 0:00:00]} Qxd5+ {[%emt 0:00:01]} 37. Rg2 {[%emt 0:00:01]} Qd1+ {[%emt 0:00:00]} 38. Rg1 {[%emt 0:00:01]} Qf3+ {[%emt 0:00:01]} 39. Rg2 {[%emt 0:00:00] aiming for h4.} Qf1+ {[%emt 0:00:01]} 40. Rg1 {[%emt 0:00:01] White wants to mate with Nf8+.} Qf3+ {[%emt 0:00:01]} 41. Rg2 {[%emt 0:00:01]} Qd1+ {[%emt 0:00:01]} 42. Rg1 {[%emt 0:00:00] Threatening mate with Nf8+.} Qd5+ {[%emt 0:00:03]} 43. Rg2 {[%emt 0:00:01]} Qd1+ {[%emt 0:00:00] Blacks defense is rewarded with a draw.  Weighted Error Value: White=0.40/Black=0.37} 1/2-1/2

[Event "FTX Crypto Cup MCCT 2022"]
[Site "Miami"]
[Date "2022.08.11"]
[Round "3.4"]
[White "Firouzja, Alireza"]
[Black "Giri, Anish"]
[Result "1/2-1/2"]
[ECO "E46"]
[WhiteElo "2793"]
[BlackElo "2760"]
[Annotator "TA"]
[PlyCount "98"]
[EventDate "2022.08.10"]
[EventType "tourn"]
[EventCountry "USA"]
[SourceTitle "playchess.com"]
[Source "ChessBase"]
[SourceQuality "1"]
[TimeControl "900+10"]

{[%evp 9,98,-4,3,1,17,12,6,5,6,4,12,0,0,0,0,0,0,0,33,43,63,58,55,-18,-15,-18,-30,-37,-34,-63,-70,-81,0,0,0,0,0,0,0,-13,-5,-4,-12,-166,-148,-162,-129,-120,-135,-143,-141,-139,-70,-73,-67,-183,-161,-154,-156,-165,0,0,0,0,0,-72,-81,-45,-110,-104,-129,-351,-337,-304,-319,-2332,-648,-533,0,-29985,0,0,0,0,0,0,0,0,0,0,0]} 1. d4 {[%emt 0:00:00]} Nf6 {[%emt 0:00:00]} 2. c4 {[%emt 0:00:02]} e6 {[%emt 0:00:01]} 3. Nc3 {[%emt 0:00:02]} Bb4 {[%emt 0:00:02]} 4. e3 {[%emt 0:00:01]} O-O {[%emt 0:00:04]} 5. Bd2 {[%emt 0:00:01]} c5 {[%emt 0:00:03]} 6. a3 {[%emt 0:00:02] E46: Nimzo-Indian: Rubinstein: 4 e3 0-0 5 Ne2 without early Bd3.} Bxc3 {[%emt 0:00:01]} 7. Bxc3 {[%emt 0:00:01]} Ne4 {[%emt 0:00:03]} 8. Ne2 {[%emt 0:00:03]} b6 {[%emt 0:00:03]} 9. d5 {[%emt 0:00:14]} Ba6 {[%emt 0:00:10]} 10. Qd3 {[%emt 0:00:16]} exd5 {[%emt 0:00:05]} 11. Qxd5 {[%emt 0:00:01]} Qe7 {[%emt 0:00:01][%cal Of8e8] [#]} 12. Rd1 $146 {[%emt 0:00:24]} (12. Qxa8 Nc6 13. Qxf8+ Kxf8 $17) ({Predecessor:} 12. g3 Nc6 13. Bg2 Rae8 14. O-O Nxc3 15. Nxc3 Na5 16. Nb5 Bb7 17. Qd3 Bxg2 18. Kxg2 {1-0 (39) Bluebaum,M (2660)-Swiercz,D (2649) chess24.com INT 2020}) 12... Nc6 $40 {[%emt 0:03:24][%mdl 128] Inhibits Be5. Black is up to no good.} 13. b3 {[%emt 0:00:44]} Rad8 {[%emt 0:07:38]} 14. Bb2 $1 {[%emt 0:00:32]} Bb7 {[%emt 0:03:02][%cal Oc6b4]} 15. Ng3 $1 {[%emt 0:03:05]} Na5 {[%emt 0:00:01]} 16. Qh5 {[%emt 0:00:08]} (16. Nf5 $14 Qe6 17. Qe5) 16... g6 $1 $11 {[%emt 0:00:28]} 17. Qh6 {[%emt 0:01:11][%csl Gb2][%cal Rh6g7]} f6 {[%emt 0:00:01]} 18. Bd3 {[%emt 0:02:10]} Nxb3 {[%emt 0:00:09]} 19. f3 {[%emt 0:02:26]} Ng5 {[%emt 0:00:37] Pair of Knights!} 20. Kf2 {[%emt 0:00:30][%cal Od3g6]} d5 {[%emt 0:00:28]} (20... Na5 $17 {White should prevent ...Nf7.} 21. h4 Nf7) 21. Bxg6 {[%emt 0:01:04]} hxg6 {[%emt 0:00:08]} 22. h4 {[%emt 0:00:17]} Nh7 {[%emt 0:01:09]} 23. Qxg6+ {[%emt 0:00:38]} Kh8 {[%emt 0:00:01]} 24. cxd5 {[%emt 0:00:08]} Rg8 {[%emt 0:00:16]} 25. Qh6 {[%emt 0:01:13] Strongly threatening Nh5.} Qg7 $1 {[%emt 0:00:21]} (25... Rxd5 26. Rxd5 Bxd5 27. Nh5 $14) 26. Qf4 {[%emt 0:00:43]} (26. Qxg7+ $11 Kxg7 27. Nf5+ Kf8 28. e4) 26... Bxd5 $19 {[%emt 0:00:19]} ({Inferior is} 26... Rxd5 27. Rxd5 Bxd5 28. Rd1 $17) 27. Rhg1 {[%emt 0:00:36]} Be6 {[%emt 0:00:35]} 28. Rxd8 {[%emt 0:00:40]} Rxd8 {[%emt 0:00:00]} 29. Bc3 {[%emt 0:00:55] Prevents Rd2+.} c4 $1 {[%emt 0:00:20]} 30. Ne4 {[%emt 0:00:07]} Nc5 {[%emt 0:00:03]} (30... Rd3 $1 $17 {Hoping for ...Bd5.} 31. g4 Nc5 32. Nxc5 bxc5) 31. Nxc5 $15 {[%emt 0:00:01]} bxc5 {[%emt 0:00:00]} 32. g4 {[%emt 0:00:00]} ({White should play} 32. Rb1 $1 $15) 32... Rd3 $19 {[%emt 0:00:03]} 33. Rc1 {[%emt 0:00:08]} Qd7 {[%emt 0:00:08][%cal Od3c3] ...Rxc3! is the strong threat.} 34. e4 {[%emt 0:00:51]} Rxc3 $2 {[%emt 0:00:19]} 35. Rxc3 $11 {[%emt 0:00:01]} Qd4+ {[%emt 0:00:00]} 36. Qe3 {[%emt 0:00:16]} Nf8 {[%emt 0:00:00]} 37. Kg3 {[%emt 0:00:15]} (37. Rc2 $11) 37... Nd7 $1 $17 {[%emt 0:00:10]} 38. Qh6+ {[%emt 0:00:36]} Kg8 {[%emt 0:00:01]} 39. Rc1 {[%emt 0:00:02]} c3 {[%emt 0:00:22] Threatens to win with ...Kf7.} 40. Qg6+ {[%emt 0:00:32]} (40. h5 $17 {might work better.}) 40... Kf8 $19 {[%emt 0:00:07]} 41. h5 {[%emt 0:00:14] [#]} Qd6+ $1 {[%emt 0:00:26]} ({And not} 41... Qd2 42. h6 Qxc1 43. Qg7+ Ke8 44. h7 Qg1+ 45. Kh3 Qh1+ 46. Kg3 Qg1+ 47. Kh3 Qf1+ 48. Kg3 Qg1+ $11) 42. Kh3 $2 {[%emt 0:00:04]} (42. e5 Qxe5+ 43. Kg2) 42... Qd2 {[%emt 0:00:20]} (42... Qf4 $142 43. Rxc3 Ne5) 43. h6 {[%emt 0:00:18] [#]} Qxc1 $2 {[%emt 0:00:02]} (43... Ke7 $1 $19 44. Ra1 (44. Qg7+ $2 Kd6 $19) 44... c2) 44. Qg7+ $11 {[%emt 0:00:03]} Ke8 {[%emt 0:00:01] ( -> ...Qf1+)} 45. h7 {[%emt 0:00:00] The position is equal.} Qh1+ {[%emt 0:00:16]} 46. Kg3 {[%emt 0:00:01]} Qg1+ {[%emt 0:00:07]} 47. Kh3 {[%emt 0:00:03]} Qh1+ {[%emt 0:00:16]} 48. Kg3 {[%emt 0:00:01] Dancing on a razor blade.} Qg1+ {[%emt 0:00:07]} 49. Kh3 {[%emt 0:00:01]} Qh1+ {[%emt 0:00:01] Weighted Error Value: White=0.35/Black=0.31} 1/2-1/2

[Event "FTX Crypto Cup MCCT 2022"]
[Site "Miami"]
[Date "2022.08.11"]
[Round "3.4"]
[White "Praggnanandhaa R"]
[Black "Niemann, Hans Moke"]
[Result "1-0"]
[ECO "D35"]
[WhiteElo "2648"]
[BlackElo "2688"]
[Annotator "TA"]
[PlyCount "127"]
[EventDate "2022.08.10"]
[EventType "tourn"]
[EventCountry "USA"]
[SourceTitle "playchess.com"]
[Source "ChessBase"]
[SourceQuality "1"]
[TimeControl "900+10"]

{[%evp 18,127,32,27,24,27,16,14,52,56,58,60,59,60,58,22,61,63,65,43,56,55,55,0,0,0,0,0,0,0,0,0,0,0,0,0,0,0,0,0,138,0,8,0,0,0,0,0,37,0,0,0,36,21,45,52,44,0,27,24,164,147,154,156,310,304,274,12,6,8,304,304,301,301,701,279,279,114,124,117,127,118,126,115,165,173,175,0,0,0,166,166,171,0,0,0,0,0,1129,1107,1335,1118,1368,1231,29983,29983,29987,29988,29988,29989,29989,29990]} 1. d4 {[%emt 0:00:00]} Nf6 {[%emt 0:00:00]} 2. c4 {[%emt 0:00:02]} e6 {[%emt 0:00:01]} 3. Nc3 {[%emt 0:00:01]} d5 {[%emt 0:00:01]} 4. cxd5 {[%emt 0:00:01]} exd5 {[%emt 0:00:01]} 5. Bg5 {[%emt 0:00:01]} c6 {[%emt 0:00:01]} 6. e3 {[%emt 0:00:01]} Bf5 {[%emt 0:00:01]} 7. Qf3 {[%emt 0:00:01]} Bg6 {[%emt 0:00:01]} 8. Bxf6 {[%emt 0:00:00]} Qxf6 {[%emt 0:00:00]} 9. Qxf6 {[%emt 0:00:01]} gxf6 {[%emt 0:00:01]} 10. Nf3 {[%emt 0:00:02]} Nd7 {[%emt 0:00:07] D35: Queen's Gambit Declined: Exchange Variation.} 11. Nh4 {[%emt 0:00:02]} Nb6 {[%emt 0:01:33]} 12. f4 {[%emt 0:00:51]} f5 {[%emt 0:00:09] The position is equal.} 13. Bd3 {[%emt 0:00:16]} Nc4 {[%emt 0:00:03]} 14. Bxc4 {[%emt 0:00:25]} dxc4 {[%emt 0:00:00]} 15. Kf2 {[%emt 0:01:36]} O-O-O {[%emt 0:00:56]} 16. a4 {[%emt 0:01:45] [#]} Be7 $146 {[%emt 0:00:41]} ({Predecessor:} 16... c5 17. d5 Bg7 18. Rhd1 Rd6 19. Rd2 Rhd8 20. Rad1 Rb6 21. d6 Kd7 22. Nb5 Bf6 {½-½ (31) Williams,S (2439)-Hawkins,J (2563) London 2015}) 17. Nf3 {[%emt 0:00:19]} f6 {[%emt 0:00:04]} 18. Nh4 {[%emt 0:01:51]} Bb4 {[%emt 0:00:37]} 19. Rhc1 {[%emt 0:01:13]} Rhe8 {[%emt 0:02:17]} 20. Nd1 {[%emt 0:00:38]} (20. Rc2 $14) 20... Bf7 $1 $11 {[%emt 0:01:24]} 21. Nxf5 {[%emt 0:01:59]} c5 $1 {[%emt 0:00:07]} 22. Nh6 {[%emt 0:00:51]} Be6 {[%emt 0:00:55]} 23. f5 $36 {[%emt 0:00:19][%mdl 2048] Black is under pressure.} Bd5 {[%emt 0:00:04]} 24. Nc3 {[%emt 0:00:26]} Bc6 {[%emt 0:00:08]} 25. Rd1 {[%emt 0:00:27]} cxd4 {[%emt 0:00:11]} 26. exd4 {[%emt 0:00:11]} Ba5 {[%emt 0:02:04]} 27. Rd2 {[%emt 0:01:34]} Bb6 {[%emt 0:01:01] This bishop pair is nice.} 28. Rad1 {[%emt 0:00:02]} Be4 {[%emt 0:00:04]} (28... Re7 $11) 29. Nxe4 {[%emt 0:01:45]} ({White has to play} 29. Nf7 $1 $16 {[%cal Rf7d8]} Bxf5 30. Nxd8 Kxd8 31. Re2) 29... Rxe4 {[%emt 0:00:03]} 30. Kf3 {[%emt 0:00:02]} Rexd4 {[%emt 0:00:21]} 31. Rxd4 {[%emt 0:00:05]} Rxd4 {[%emt 0:00:00][%mdl 4096] Endgame KRB-KRN} 32. Rc1 {[%emt 0:00:25]} Rd3+ {[%emt 0:01:33]} 33. Ke4 {[%emt 0:00:08]} Rd4+ {[%emt 0:00:11]} 34. Kf3 {[%emt 0:00:01]} Rd3+ {[%emt 0:00:02]} 35. Kg4 {[%emt 0:00:41]} Rd2 {[%emt 0:00:36]} 36. Rxc4+ {[%emt 0:00:10]} Kd7 {[%emt 0:00:03]} 37. Kh3 {[%emt 0:00:13]} Rxb2 {[%emt 0:00:03]} 38. Ng8 {[%emt 0:00:09]} Kd6 {[%emt 0:01:20]} (38... Bd8 $11) 39. Re4 $1 $18 {[%emt 0:00:20]} (39. Nxf6 $6 Ke5 40. Nxh7 Kxf5 $14) 39... Rf2 {[%emt 0:00:48]} 40. g4 {[%emt 0:01:13][%cal Bg2g4,Bg4g5][%mdl 32]} (40. Nxf6 Rxf5 41. Ne8+ Kc6 $11) 40... Kc5 $2 {[%emt 0:01:07]} (40... Bc7 $16) 41. Kg3 {[%emt 0:00:47]} ({Not} 41. Nxf6 Bc7 42. g5 h5 43. gxh6 (43. Nxh5 Rxh2+ 44. Kg4 Rg2+ 45. Kh4 Rh2+ 46. Kg4 Rg2+ 47. Kh4 Rh2+ 48. Kg4 $11) 43... Rxh2+ 44. Kg4 Rxh6 $16) 41... Ra2 {[%emt 0:00:11]} 42. h4 $2 {[%emt 0:00:05]} (42. Nxf6 $18 {Strongly threatening g5.} Ra3+ 43. Kf2) 42... Bc7+ $11 {[%emt 0:00:05]} 43. Kf3 {[%emt 0:00:06]} Be5 {[%emt 0:00:07][%mdl 8192]} (43... Ra3+ $1 $11 44. Ke2 Ra2+ 45. Kd1 Ra1+ 46. Ke2 Ra2+ 47. Kf1 Ra1+ 48. Kg2 Ra2+ 49. Kf3 Ra3+ 50. Ke2 Ra2+) 44. g5 $18 {[%emt 0:00:12]} Ra3+ {[%emt 0:00:03]} 45. Kg4 {[%emt 0:00:04]} Rg3+ {[%emt 0:00:42]} 46. Kh5 {[%emt 0:00:03]} Kd5 {[%emt 0:00:01]} 47. Re2 {[%emt 0:00:54]} (47. Nxf6+ $18 {is the precise move to win.} Bxf6 48. Rb4) 47... fxg5 $16 {[%emt 0:00:04]} 48. hxg5 {[%emt 0:00:11] Threatens to win with Nf6+.} Rh3+ {[%emt 0:00:44]} 49. Kg4 {[%emt 0:00:01]} Rg3+ {[%emt 0:00:00]} 50. Kh4 {[%emt 0:00:03]} Rg1 {[%emt 0:00:29] [#]} (50... Rf3 $16) 51. Nf6+ $1 $18 {[%emt 0:00:34]} ({Worse is} 51. Ne7+ Kd6 $11) 51... Kd6 {[%emt 0:00:03]} 52. Ne8+ $2 {[%emt 0:00:18]} ({Better is} 52. Ne4+ $18 Kd5 53. f6) 52... Kd5 $11 {[%emt 0:00:03]} 53. Nf6+ $2 {[%emt 0:00:01]} (53. a5 $11) 53... Kd6 $1 $18 {[%emt 0:00:01]} 54. Ne4+ {[%emt 0:00:25]} Kd5 {[%emt 0:00:07]} 55. Nf2 $2 {[%emt 0:00:15]} (55. f6 $18) 55... Rg2 $1 $11 {[%emt 0:00:19] And now ...Bg3+ would win.} 56. Rd2+ {[%emt 0:00:07]} Bd4 {[%emt 0:00:07]} 57. Ne4 {[%emt 0:00:11]} Rg1 {[%emt 0:00:52][%mdl 8192] [#]} (57... Rxd2 $11 58. Nxd2 b6) 58. Ng3 $1 $18 {[%emt 0:00:07]} Ra1 {[%emt 0:01:30]} 59. Ne2 {[%emt 0:00:06]} Ke5 {[%emt 0:00:06]} 60. Nxd4 {[%emt 0:00:10]} Rxa4 {[%emt 0:00:01] [#]} 61. f6 $1 {[%emt 0:00:07] White mates.} Ra1 {[%emt 0:00:04]} (61... Kd6 62. Kh5) 62. Nf3+ {[%emt 0:00:05]} Ke6 {[%emt 0:00:03]} 63. Re2+ {[%emt 0:00:04]} Kf7 {[%emt 0:00:05]} 64. Re7+ {[%emt 0:00:03] Weighted Error Value: White=0.24 (precise) /Black=0.40} 1-0

[Event "FTX Crypto Cup MCCT 2022"]
[Site "Miami"]
[Date "2022.08.11"]
[Round "3.5"]
[White "Giri, Anish"]
[Black "Firouzja, Alireza"]
[Result "1/2-1/2"]
[ECO "E04"]
[WhiteElo "2760"]
[BlackElo "2793"]
[Annotator "TA"]
[PlyCount "88"]
[EventDate "2022.08.10"]
[EventType "tourn"]
[EventCountry "USA"]
[SourceTitle "playchess.com"]
[Source "ChessBase"]
[SourceQuality "1"]
[TimeControl "300+3"]

{[%evp 15,88,16,24,11,18,10,16,0,0,0,3,7,6,16,16,5,10,8,8,0,20,14,18,20,15,16,37,2,12,12,41,0,0,0,0,0,16,10,12,12,12,16,9,16,16,16,18,9,9,11,11,9,9,9,9,9,9,7,6,4,8,0,0,0,0,0,0,0,0,0,0,0,0,0,0]} 1. d4 {[%emt 0:00:00]} Nf6 {[%emt 0:00:00]} 2. c4 {[%emt 0:00:01]} e6 {[%emt 0:00:01]} 3. Nf3 {[%emt 0:00:00]} d5 {[%emt 0:00:01]} 4. g3 {[%emt 0:00:00]} dxc4 {[%emt 0:00:00]} 5. Bg2 {[%emt 0:00:01]} c5 {[%emt 0:00:00]} 6. O-O {[%emt 0:00:00]} Nc6 {[%emt 0:00:01]} 7. Qa4 {[%emt 0:00:01]} Bd7 {[%emt 0:00:02]} 8. Qxc4 {[%emt 0:00:00]} b5 {[%emt 0:00:01]} 9. Qc3 {[%emt 0:00:01] E04: Open Catalan: 5 Nf3.} b4 {[%emt 0:00:03]} 10. Qd3 {[%emt 0:00:01]} Rc8 {[%emt 0:00:04]} 11. Bf4 {[%emt 0:00:00]} cxd4 {[%emt 0:00:04]} 12. Nbd2 {[%emt 0:00:01]} Nd5 {[%emt 0:00:01]} 13. Be5 {[%emt 0:00:01]} Nxe5 {[%emt 0:00:12]} 14. Nxe5 {[%emt 0:00:01]} Be7 {[%emt 0:00:01]} 15. Rfc1 {[%emt 0:00:01]} O-O {[%emt 0:00:06]} 16. Nb3 {[%emt 0:00:01]} Bf6 {[%emt 0:00:15]} 17. Ng4 {[%emt 0:00:01] [#]} Bg5 $146 {[%emt 0:00:03]} ({Predecessor:} 17... Be7 18. Nxd4 Qb6 19. Ne5 Rxc1+ 20. Rxc1 Rc8 21. Rxc8+ Bxc8 22. Bxd5 exd5 23. Qf3 Be6 24. Nxe6 {½-½ (24) Deac,B (2671)-Yilmaz,M (2631) Sharjah 2022}) 18. Rxc8 {[%emt 0:00:11]} Bxc8 {[%emt 0:00:40]} 19. h4 {[%emt 0:01:09]} Be7 {[%emt 0:00:15]} 20. Qxd4 {[%emt 0:00:05]} Qb6 {[%emt 0:00:08]} 21. Qxb6 {[%emt 0:00:17]} axb6 {[%emt 0:00:10]} 22. Rc1 {[%emt 0:00:05]} Ba6 {[%emt 0:00:15]} 23. Nd4 {[%emt 0:00:18]} (23. Bxd5 $5 exd5 24. Kf1 $11) 23... Bc5 {[%emt 0:00:18] The position is equal.} 24. e3 {[%emt 0:00:01]} Rc8 {[%emt 0:00:44]} 25. Ne5 {[%emt 0:00:04]} Bd6 {[%emt 0:00:13]} 26. Rxc8+ {[%emt 0:00:13]} Bxc8 {[%emt 0:00:00]} 27. Nc4 {[%emt 0:00:53]} Bc5 {[%emt 0:00:35]} 28. Nb3 {[%emt 0:00:14]} Ba6 {[%emt 0:00:12]} 29. Bf1 {[%emt 0:00:03][%cal Oc4b6]} Bxc4 {[%emt 0:00:31]} 30. Bxc4 $11 {[%emt 0:00:01][%mdl 4096] Endgame KBN-KBN} Bd6 {[%emt 0:00:02]} 31. Nd4 {[%emt 0:01:44]} Nf6 {[%emt 0:00:11]} 32. Kf1 {[%emt 0:00:16]} Kf8 {[%emt 0:00:31]} 33. Ke2 {[%emt 0:00:01]} Ke7 {[%emt 0:00:02]} 34. Bb5 {[%emt 0:00:13]} h5 {[%emt 0:00:04]} 35. Bc6 {[%emt 0:00:02]} g6 {[%emt 0:00:04]} 36. Bf3 {[%emt 0:00:04]} Nd7 {[%emt 0:00:05]} (36... e5 $5 {[%cal Re5d4]} 37. Nb3 e4 $11) 37. Bg2 {[%emt 0:00:08]} Ne5 {[%emt 0:00:05]} 38. Nc6+ {[%emt 0:00:11]} Nxc6 {[%emt 0:00:02]} 39. Bxc6 {[%emt 0:00:00] KB-KB} Be5 {[%emt 0:00:03]} 40. b3 {[%emt 0:00:02]} Bc3 {[%emt 0:00:01]} 41. Kd3 {[%emt 0:00:02]} Be1 {[%emt 0:00:01]} 42. Ke2 {[%emt 0:00:00]} Bc3 {[%emt 0:00:00]} 43. Kd3 {[%emt 0:00:00]} Be1 {[%emt 0:00:01]} 44. Ke2 {[%emt 0:00:00]} Bc3 {[%emt 0:00:00] An interesting draw.  Weighted Error Value: White=0.04 (flawless) /Black=0.03 (flawless)} 1/2-1/2